bitfinex-derivatives/quotes_ETHF0:USTF0_20250410
["timestamp","ask_amount","ask_price","bid_price","bid_amount"]
[1744295172044,0.00953803,1574.9,1574.8,16.18355078]
[1744295172847,16.17237993,1575.6,1575.0,3.1764]
[1744295173142,1.27033,1575.3,1575.2,4.47816]
[1744295173340,1.27041,1575.2,1575.1,10.21242078]
[1744295173540,1.27041,1575.2,1575.1,7.4502]
[1744295173741,1.27041,1575.2,1575.1,4.47829]
[1744295173941,1.27990803,1575.3,1575.2,1.27041]
[1744295174147,1.27041,1575.2,1575.1,4.47823]
[1744295174539,1.27049,1575.1,1575.0,1.28004803]
[1744295175148,1.27049,1575.1,1575.0,0.00953803]
[1744295175542,1.27049,1575.1,1575.0,1.28010803]
[1744295176049,1.27049,1575.1,1575.0,4.04613803]
[1744295176348,6.27049,1575.1,1575.0,0.00953803]
[1744295176939,10.27379,1575.1,1575.0,0.00953803]
[1744295177337,16.10779,1575.1,1575.0,0.00953803]
[1744295177541,19.31559,1575.1,1575.0,8.03e-06]
[1744295177943,16.10779,1575.1,1575.0,8.03e-06]
[1744295178151,19.31559,1575.1,1575.0,8.03e-06]
[1744295179350,16.10779,1575.1,1575.0,8.03e-06]
[1744295179656,19.31559,1575.1,1575.0,8.03e-06]
[1744295180150,16.10779,1575.1,1575.0,8.03e-06]
[1744295180347,15.31229,1575.1,1575.0,8.03e-06]
[1744295180551,6.27049,1575.1,1575.0,8.03e-06]
[1744295180848,8.39819,1575.1,1575.0,8.03e-06]
[1744295181156,5.19039,1575.1,1575.0,8.03e-06]
[1744295181339,1.27049,1575.1,1575.0,8.03e-06]
[1744295181545,1.27047,1575.2,1575.0,1.27054803]
[1744295181855,1.27047,1575.2,1575.1,4.1939]
[1744295182751,5.19037,1575.2,1575.1,4.1939]
[1744295183044,5.19037,1575.2,1575.0,8.03e-06]
[1744295183045,1.27049,1575.1,1575.0,8.03e-06]
[1744295183245,4.03643803,1575.3,1575.0,4.47832803]
[1744295183442,4.03643803,1575.3,1575.1,3.927]
[1744295183443,1.27041,1575.2,1575.1,3.927]
[1744295184244,1.27049,1575.1,1575.0,8.03e-06]
[1744295184855,1.27049,1575.1,1575.0,3.20780803]
[1744295185054,1.27049,1575.1,1575.0,7.13480803]
[1744295185754,1.27049,1575.1,1575.0,3.92700803]
[1744295186253,1.27049,1575.1,1575.0,8.03e-06]
[1744295186451,5.40589,1575.1,1575.0,8.03e-06]
[1744295186649,1.27049,1575.1,1575.0,8.03e-06]
[1744295186956,5.40589,1575.1,1575.0,8.03e-06]
[1744295187456,16.23989,1575.1,1575.0,8.03e-06]
[1744295187655,1.27081,1574.7,1574.6,9.82767742]
[1744295187856,4.47861,1574.7,1574.6,9.82767742]
[1744295188261,15.31261,1574.7,1574.6,4.56681742]
[1744295188560,1.2709,1574.6,1574.5,10.80881582]
[1744295188745,20.4709,1574.6,1574.5,9.53458582]
[1744295188944,25.4709,1574.6,1574.5,4.50809582]
[1744295189351,31.3049,1574.6,1574.4,0.00953803]
[1744295189556,1.27106,1574.4,1574.3,17.85479321]
[1744295189747,7.10506,1574.4,1574.3,12.54122321]
[1744295190056,12.10506,1574.4,1574.3,12.54122321]
[1744295190254,31.30506,1574.4,1574.3,12.54122321]
[1744295190653,31.30506,1574.4,1574.3,9.93656321]
[1744295190855,31.30506,1574.4,1574.3,8.40324321]
[1744295191048,31.30506,1574.4,1574.3,6.20684321]
[1744295191249,31.30506,1574.4,1574.3,0.08300321]
[1744295191556,1.27122,1574.2,1574.1,29.51368612]
[1744295191751,15.31302,1574.2,1574.1,29.51368612]
[1744295191958,7.10522,1574.2,1574.1,8.4136]
[1744295192161,7.10522,1574.2,1574.1,4.2759]
[1744295192357,1.27108,1574.4,1574.2,1.27121]
[1744295192652,1.27114,1574.3,1574.2,3.2078]
[1744295192859,29.72240803,1574.5,1574.1,10.24592078]
[1744295193050,1.2713,1574.1,1574.0,0.00953803]
[1744295193249,4.4791,1574.1,1574.0,0.00953803]
[1744295193449,15.3131,1574.1,1574.0,8.03e-06]
[1744295193650,3.17847,1574.0,1573.4,3.2078]
[1744295193850,1.27166,1573.7,1573.5,1.27176]
[1744295194060,1.27162,1573.8,1573.4,3.2078]
[1744295194357,1.27166,1573.7,1573.5,1.27176]
[1744295194552,10.49249,1574.0,1573.3,5.97002078]
[1744295194757,1.27155,1573.8,1573.6,1.27164]
[1744295194961,1.2717,1573.6,1573.5,0.00953803]
[1744295195160,0.00953803,1573.8,1573.5,0.00953803]
[1744295195361,0.00953803,1573.8,1573.6,3.2078]
[1744295195561,0.00953803,1573.8,1573.7,1.27162]
[1744295195853,0.00953803,1573.8,1573.7,7.24164078]
[1744295196064,0.00953803,1573.8,1573.7,12.24164078]
[1744295196447,19.2,1574.5,1573.9,3.17846]
[1744295196652,0.95381322,1574.1,1574.0,3.2078]
[1744295196857,0.95381322,1574.1,1574.0,4.47918]
[1744295197063,0.95381322,1574.1,1574.0,9.47918]
[1744295197665,0.95381322,1574.1,1574.0,10.412048]
[1744295197964,0.95381322,1574.1,1574.0,5.412048]
[1744295198154,2.22511322,1574.1,1574.0,5.412048]
[1744295198454,0.95381322,1574.1,1574.0,10.412048]
[1744295198649,0.95381322,1574.1,1574.0,17.727048]
[1744295198854,0.95381322,1574.1,1574.0,23.69706878]
[1744295199056,3.22e-06,1574.1,1574.0,23.69706878]
[1744295200357,3.22e-06,1574.1,1574.0,18.69706878]
[1744295200556,0.00953803,1574.2,1574.1,1.2713]
[1744295200965,0.00953803,1574.2,1574.1,7.204168]
[1744295201561,0.00953803,1574.2,1574.1,2.204168]
[1744295201765,6.2318773,1574.7,1574.6,1.2709]
[1744295202061,6.2318373,1574.7,1574.6,4.4787]
[1744295202253,4.9610273,1574.7,1574.6,5.411568]
[1744295202453,4.9610273,1574.7,1574.6,10.411568]
[1744295202760,6.2318373,1574.7,1574.6,0.932868]
[1744295203759,4.9610273,1574.7,1574.6,2.203768]
[1744295204061,6.2318373,1574.7,1574.6,0.932868]
[1744295204662,11.2318373,1574.7,1574.6,0.932868]
[1744295204862,4.9610273,1574.7,1574.6,0.932868]
[1744295205161,6.2318373,1574.7,1574.6,0.932868]
[1744295205563,4.9610273,1574.7,1574.6,2.203768]
[1744295205757,0.00953803,1574.8,1574.7,1.27081]
[1744295205963,0.00953803,1574.8,1574.6,0.932868]
[1744295206163,0.00953803,1574.8,1574.7,0.932868]
[1744295206363,1.28026803,1574.8,1574.7,0.932868]
[1744295206557,6.28026803,1574.8,1574.7,0.932868]
[1744295206761,4.48806803,1574.8,1574.7,0.932868]
[1744295206963,1.28026803,1574.8,1574.7,0.932868]
[1744295207464,4.48806803,1574.8,1574.7,0.932868]
[1744295207665,9.48806803,1574.8,1574.7,0.932868]
[1744295207964,1.28026803,1574.8,1574.7,0.932868]
[1744295210765,4.48806803,1574.8,1574.7,0.932868]
[1744295211370,22.61306803,1574.8,1574.7,8e-06]
[1744295212166,1.2709,1574.6,1574.5,0.00953803]
[1744295212464,4.4787,1574.6,1574.5,0.00953803]
[1744295214067,9.4787,1574.6,1574.5,0.00953803]
[1744295214267,9.4787,1574.6,1574.5,8.03e-06]
[1744295216168,15.3127,1574.6,1574.5,8.03e-06]
[1744295216470,34.5127,1574.6,1574.5,8.03e-06]
[1744295219173,26.3049,1574.6,1574.5,8.03e-06]
[1744295219368,29.5127,1574.6,1574.5,8.03e-06]
[1744295219769,23.6787,1574.6,1574.5,8.03e-06]
[1744295219964,20.4709,1574.6,1574.5,8.03e-06]
[1744295220165,0.00953803,1574.8,1574.5,8.03e-06]
[1744295220477,11.23119027,1574.6,1574.5,4.06530803]
[1744295220668,9.96029027,1574.6,1574.5,8.54408803]
[1744295220870,9.96029027,1574.6,1574.5,13.54408803]
[1744295221669,9.96029027,1574.6,1574.5,17.76538803]
[1744295222066,9.96029027,1574.6,1574.5,18.40058803]
[1744295222875,9.96029027,1574.6,1574.5,17.76538803]
[1744295223580,7.19738889,1574.8,1574.7,1.27081]
[1744295223881,7.19738889,1574.8,1574.5,17.38250543]
[1744295223882,1.27081,1574.7,1574.6,5.72823]
[1744295224285,7.19737889,1574.8,1574.7,1.27081]
[1744295224482,7.19737889,1574.8,1574.7,4.47861]
[1744295224483,5.92657889,1574.8,1574.7,4.47861]
[1744295224783,5.92657889,1574.8,1574.7,10.3667074]
[1744295224981,7.19730889,1574.8,1574.7,0.8880974]
[1744295225581,5.92657889,1574.8,1574.7,2.1589074]
[1744295226078,7.19730889,1574.8,1574.7,0.8880974]
[1744295226880,11.65780889,1574.8,1574.7,0.8880974]
[1744295227275,5.92657889,1574.8,1574.7,10.3667074]
[1744295227779,0.00953803,1574.8,1574.7,10.3667074]
[1744295228178,8.03e-06,1574.8,1574.7,16.33672818]
[1744295228483,4.96374034,1575.1,1575.0,1.27057]
[1744295228675,4.96374034,1575.1,1575.0,4.47837]
[1744295228873,7.44561051,1575.2,1575.1,1.27049]
[1744295229181,9.96029027,1575.3,1575.2,1.27041]
[1744295229389,9.9698283,1575.3,1575.2,5.3663074]
[1744295229586,9.9698283,1575.3,1575.2,16.33632818]
[1744295230687,9.9698283,1575.3,1575.2,11.33632818]
[1744295230878,11.2401583,1575.3,1575.2,0.8880974]
[1744295231383,14.4479583,1575.3,1575.2,0.8880974]
[1744295231580,11.2401583,1575.3,1575.2,0.8880974]
[1744295231881,9.9698283,1575.3,1575.2,7.1585074]
[1744295233181,0.00953803,1575.3,1575.2,7.7937074]
[1744295233386,0.00953803,1575.3,1575.2,7.1585074]
[1744295234283,0.00953803,1575.3,1575.2,13.12852818]
[1744295234787,1.27004,1575.7,1575.6,1.27004]
[1744295235085,1.26997,1575.8,1575.7,1.26995]
[1744295235476,4.1195,1575.9,1575.7,0.8880974]
[1744295235681,1.26993,1575.8,1575.7,2.1580474]
[1744295235880,1.26993,1575.8,1575.7,0.8880974]
[1744295236085,1.26993,1575.8,1575.7,2.1581074]
[1744295236286,1.26993,1575.8,1575.7,6.4766074]
[1744295236581,5.34513,1575.8,1575.7,6.4766074]
[1744295236883,5.34513,1575.8,1575.7,0.8880974]
[1744295237091,1.27001,1575.7,1575.6,0.00953803]
[1744295237383,8.55301,1575.7,1575.6,0.00953803]
[1744295237583,8.55301,1575.7,1575.6,0.8938322]
[1744295237977,8.55301,1575.7,1575.6,0.00953803]
[1744295238178,17.62298803,1576.0,1575.6,0.00953803]
[1744295238179,20.83078803,1576.0,1575.6,0.00953803]
[1744295238385,5.34505,1575.9,1575.7,1.26997]
[1744295238587,4.0752,1575.8,1575.7,5.58844]
[1744295238788,1.27001,1575.7,1575.6,0.00953803]
[1744295238979,1.27001,1575.7,1575.6,1.27962803]
[1744295239179,5.34519,1575.8,1575.6,0.00953803]
[1744295239384,4.0752,1575.8,1575.6,1.27955803]
[1744295239582,5.57681,1575.7,1575.6,0.00953803]
[1744295239887,16.52375,1575.7,1575.0,6.38417]
[1744295240184,1.27029,1575.4,1575.3,1.2703]
[1744295240484,1.27044,1575.2,1575.0,4.1331]
[1744295240681,4.3068,1575.1,1574.7,1.27081]
[1744295240879,3.2078,1575.0,1574.9,1.27062]
[1744295241079,4.47842,1575.0,1574.8,1.27067]
[1744295241279,4.3068,1574.9,1574.8,1.28020803]
[1744295241493,5.57745,1574.9,1574.8,0.00953803]
[1744295241680,15.1408,1574.9,1574.3,1.27108]
[1744295241885,1.27101,1574.5,1574.3,5.7006]
[1744295242085,4.4333,1574.4,1574.3,5.7006]
[1744295242286,19.2,1574.6,1574.3,4.4295]
[1744295242487,24.90425,1574.6,1574.4,1.27104]
[1744295242788,23.6333,1574.6,1574.5,1.27098]
[1744295242993,24.9042,1574.6,1574.5,1.27098]
[1744295243189,3.79821187,1574.6,1574.5,1.27098]
[1744295243487,1.2709,1574.6,1574.5,1.27096]
[1744295243790,1.2709,1574.6,1574.5,0.88537804]
[1744295244491,1.27106,1574.4,1574.3,0.00953803]
[1744295244785,4.47886,1574.4,1574.3,0.00953803]
[1744295244989,3.17788,1574.3,1573.7,7.353]
[1744295245178,1.27144,1574.0,1573.8,1.27149]
[1744295245380,1.27132,1574.1,1573.9,1.27144]
[1744295245786,1.27141,1574.0,1573.8,1.2715]
[1744295245987,1.2715,1573.9,1573.7,8.62459]
[1744295246183,1.27151,1573.9,1573.7,5.42631803]
[1744295246378,4.4273,1573.8,1573.7,5.42631803]
[1744295246892,5.69884,1573.8,1573.7,0.00953803]
[1744295247293,1.27141,1574.0,1573.7,4.10295605]
[1744295247497,4.4273,1574.0,1573.8,4.4821]
[1744295247686,4.37533803,1574.1,1573.8,4.4821]
[1744295247687,1.28083803,1574.1,1574.0,1.27138]
[1744295248089,0.00953803,1574.1,1574.0,5.75348]
[1744295248287,0.00953803,1574.1,1574.0,6.63909802]
[1744295248688,0.00953803,1574.1,1574.0,11.63909802]
[1744295248892,1.27088,1574.7,1574.5,1.27098]
[1744295249195,4.27,1574.6,1574.5,1.27098]
[1744295249491,14.23029027,1574.6,1574.5,1.27098]
[1744295249795,15.50119027,1574.6,1574.5,1.27098]
[1744295249990,1.27098,1574.5,1574.4,5.60981]
[1744295250185,4.27,1574.5,1574.4,1.27101]
[1744295250496,1.27116,1574.3,1574.2,1.27116]
[1744295250795,5.54103,1574.5,1574.4,1.27106]
[1744295250986,1.27108,1574.4,1574.3,1.27108]
[1744295251187,4.2873,1574.4,1574.3,1.27108]
[1744295251391,5.55836,1574.4,1574.3,1.27108]
[1744295251583,1.27116,1574.3,1574.2,1.27116]
[1744295251783,4.2873,1574.3,1574.2,1.27116]
[1744295251984,4.2873,1574.3,1574.1,7.5926]
[1744295252179,4.2873,1574.3,1574.2,0.88642052]
[1744295252180,5.55844,1574.3,1574.2,0.88642052]
[1744295252387,8.76624,1574.3,1574.2,0.88642052]
[1744295252595,1.27146,1573.9,1573.8,1.27153]
[1744295252793,1.27144,1574.0,1573.8,1.27153]
[1744295252994,1.27144,1574.0,1573.9,1.27146]
[1744295253188,7.4951,1574.1,1573.8,5.27122965]
[1744295253189,1.27137,1574.1,1573.8,5.27122965]
[1744295253492,1.2713,1574.1,1573.9,2.15782965]
[1744295253692,1.2713,1574.1,1574.0,1.27138]
[1744295253892,1.27137,1574.1,1573.9,2.15782965]
[1744295254092,3.2078,1574.3,1573.9,2.15782965]
[1744295254297,1.27133,1574.1,1573.9,2.15781965]
[1744295254594,6.38566,1574.3,1573.9,0.88642965]
[1744295254785,1.27137,1574.1,1574.0,0.88642965]
[1744295254986,4.47917,1574.1,1574.0,0.88642965]
[1744295255292,1.27154,1573.8,1573.7,0.00953803]
[1744295255590,4.47934,1573.8,1573.7,0.89486038]
[1744295255889,28.67934,1573.8,1573.7,0.89486038]
[1744295256191,3.17977,1573.4,1572.9,4.48005]
[1744295256394,3.17977,1573.4,1572.8,1.27229]
[1744295256395,1.27219,1573.0,1572.8,1.27229]
[1744295256796,4.47997,1573.1,1572.9,1.27227]
[1744295256985,4.47997,1573.1,1572.7,7.3637]
[1744295257192,1.27213,1573.1,1572.9,1.27219]
[1744295257391,1.28160803,1573.2,1573.0,1.27216]
[1744295257696,1.27211,1573.1,1572.9,1.27219]
[1744295257897,1.28157803,1573.2,1573.0,1.27219]
[1744295258494,1.28157803,1573.2,1572.9,5.48682]
[1744295258693,1.27216,1573.1,1572.9,4.2146]
[1744295258895,0.00953803,1573.2,1572.9,1.27223]
[1744295259100,1.28163803,1573.2,1573.0,1.27217]
[1744295259395,1.27222,1573.0,1572.8,5.49643803]
[1744295259696,1.27222,1573.0,1572.9,1.27227]
[1744295259996,1.27222,1573.0,1572.8,5.49642803]
[1744295260199,1.27227,1572.9,1572.8,0.00953803]
[1744295260391,4.48007,1572.9,1572.8,0.00953803]
[1744295261394,0.00953803,1573.2,1572.8,0.00953803]
[1744295261601,0.00953803,1573.2,1572.8,6.39802803]
[1744295261900,0.00953803,1573.2,1572.9,4.0704]
[1744295261901,1.28159803,1573.2,1572.9,4.0704]
[1744295262086,0.00953803,1573.2,1573.1,1.27211]
[1744295262289,1.27219,1573.0,1572.9,5.34262]
[1744295262493,1.27227,1572.9,1572.8,1.28187803]
[1744295262693,1.27227,1572.9,1572.8,0.00953803]
[1744295263089,1.27224,1573.0,1572.8,0.00953803]
[1744295263294,1.27224,1573.0,1572.9,1.27227]
[1744295263593,1.27227,1572.9,1572.8,1.28185803]
[1744295263788,1.27227,1572.9,1572.8,0.00953803]
[1744295264606,5.50867,1572.9,1572.8,0.00953803]
[1744295264907,10.50867,1572.9,1572.8,0.00953803]
[1744295266311,10.50867,1572.9,1572.8,1e-08]
[1744295267211,28.4364,1572.9,1571.7,7.4723]
[1744295267505,1.27294,1572.1,1571.8,4.3442]
[1744295267812,4.488,1572.0,1571.8,4.33121039]
[1744295268005,5.76102,1572.0,1571.8,5.60433039]
[1744295268200,5.76105,1572.0,1571.8,1.27314]
[1744295268511,1.27308,1571.9,1571.8,1.27314]
[1744295268712,5.76108,1571.9,1571.7,1.27953875]
[1744295269309,5.76108,1571.9,1571.7,0.00635875]
[1744295269310,1.27316,1571.8,1571.7,0.00635875]
[1744295269507,5.47216,1571.8,1571.7,0.8797647]
[1744295269810,3.18326,1571.7,1571.2,5.65522]
[1744295270007,1.2736,1571.3,1571.1,4.48146]
[1744295270209,4.199,1571.2,1571.0,14.69620859]
[1744295270507,7.4068,1571.2,1571.0,14.69620859]
[1744295270704,7.248,1571.4,1571.3,1.27356]
[1744295270909,1.27349,1571.4,1571.1,4.1687]
[1744295271108,4.20853803,1571.5,1571.1,10.56081]
[1744295271309,4.20853803,1571.5,1571.4,1.27348]
[1744295271508,4.20853803,1571.5,1571.1,10.56081]
[1744295271509,0.00953803,1571.5,1571.3,3.2078]
[1744295271705,0.00953803,1571.5,1571.4,1.27348]
[1744295271912,0.00953803,1571.5,1571.4,2.1408379]
[1744295272216,4.20853803,1571.5,1571.4,2.1408379]
[1744295272514,0.00953803,1571.5,1571.4,2.1408379]
[1744295272715,0.00953803,1571.5,1571.4,6.5882379]
[1744295272912,0.00953803,1571.5,1571.4,2.1408379]
[1744295273117,0.00953803,1571.5,1571.4,11.5882379]
[1744295273319,0.00953803,1571.5,1571.4,2.1408379]
[1744295273516,0.00953803,1571.5,1571.4,6.5882379]
[1744295275421,0.00953803,1571.5,1571.4,5.3147579]
[1744295275721,0.00953803,1571.5,1571.4,6.5882379]
[1744295275922,1.28293803,1571.5,1571.4,5.3147579]
[1744295276309,1.28293803,1571.5,1571.4,6.5882379]
[1744295276310,0.00953803,1571.5,1571.4,6.5882379]
[1744295276513,0.00953803,1571.5,1571.4,9.7960379]
[1744295276913,0.00953803,1571.5,1571.4,14.7960379]
[1744295278018,0.00953803,1571.5,1571.4,9.7960379]
[1744295278420,0.00953803,1571.5,1571.4,14.7960379]
[1744295279016,8.03e-06,1571.5,1571.4,14.7960379]
[1744295279818,8.03e-06,1571.5,1571.4,9.7960379]
[1744295280020,8.03e-06,1571.5,1571.4,6.5882379]
[1744295280615,1.27340803,1571.5,1571.4,6.5882379]
[1744295281023,4.48120803,1571.5,1571.4,0.8673579]
[1744295281219,1.27340803,1571.5,1571.4,2.1408379]
[1744295281418,1.27340803,1571.5,1571.4,0.8673579]
[1744295281619,1.27340803,1571.5,1571.4,6.2994379]
[1744295281819,8.03e-06,1571.5,1571.4,14.5072379]
[1744295282015,8.03e-06,1571.5,1571.4,9.5072379]
[1744295283121,8.03e-06,1571.5,1571.4,6.2994379]
[1744295283317,1.27340803,1571.5,1571.4,0.8673579]
[1744295283627,8.94030803,1571.5,1571.4,0.8673579]
[1744295283820,13.94030803,1571.5,1571.4,0.8673579]
[1744295284719,8.94030803,1571.5,1571.4,0.8673579]
[1744295284935,4.45910803,1571.5,1571.4,2.1408379]
[1744295285122,8.03e-06,1571.5,1571.4,14.8024379]
[1744295285420,8.03e-06,1571.5,1571.4,9.8024379]
[1744295287326,8.03e-06,1571.5,1571.4,6.5946379]
[1744295287525,8.03e-06,1571.5,1571.4,9.8024379]
[1744295288526,8.03e-06,1571.5,1571.4,14.8024379]
[1744295289222,1.27286,1572.2,1571.9,3.18266]
[1744295289427,1.27306,1572.0,1571.9,1.27305]
[1744295289626,1.27298,1572.1,1572.0,1.27298]
[1744295289821,3.18193,1572.3,1571.9,4.1171]
[1744295290027,1.27299,1572.1,1572.0,0.8673579]
[1744295290227,4.48079,1572.1,1572.0,0.8673579]
[1744295290429,9.48079,1572.1,1572.0,0.8673579]
[1744295290931,13.77989,1572.1,1572.0,0.8673579]
[1744295291115,3.18276,1571.9,1571.4,5.39057]
[1744295291321,1.27348,1571.4,1571.3,0.00953]
[1744295291516,4.48128,1571.4,1571.3,0.00953]
[1744295291717,9.48128,1571.4,1571.3,0.00953]
[1744295292420,1.27377,1571.1,1571.0,1.27381]
[1744295292728,1.27371,1571.2,1571.0,1.27381]
[1744295292928,1.27373,1571.1,1570.7,14.80269]
[1744295293127,1.27384,1571.0,1570.7,11.6176]
[1744295293326,6.39195,1571.2,1570.8,1.27397]
[1744295293531,1.27384,1571.0,1570.8,1.27397]
[1744295293725,6.39193,1571.2,1570.8,1.27397]
[1744295293925,1.27399,1570.8,1570.6,1.27407]
[1744295294124,3.2078,1570.9,1570.5,12.90086]
[1744295294331,3.2078,1570.9,1570.4,1.27427]
[1744295294332,1.27418,1570.6,1570.4,1.27427]
[1744295294631,3.18493,1570.8,1570.3,4.1609]
[1744295294832,1.27416,1570.6,1570.4,1.27425]
[1744295295031,0.00953803,1570.7,1570.6,1.27413]
[1744295295220,0.00953803,1570.7,1570.3,1.27433]
[1744295295532,0.00953803,1570.7,1570.3,5.43526]
[1744295295533,1.27413,1570.6,1570.3,5.43526]
[1744295295731,1.27422,1570.5,1570.3,4.1609]
[1744295296327,0.00953803,1570.7,1570.3,4.1609]
[1744295296527,0.55069387,1570.4,1570.1,4.2859]
[1744295296726,0.55069387,1570.4,1570.3,1.27438]
[1744295296927,1.27417,1570.6,1570.4,1.27428]
[1744295297127,0.00953803,1570.7,1570.2,4.1609]
[1744295297333,1.27438,1570.3,1570.2,4.1609]
[1744295297530,1.27436,1570.4,1570.2,7.3687]
[1744295297735,1.27438,1570.3,1570.1,5.56038]
[1744295297931,1.27438,1570.3,1570.2,4.5201]
[1744295298239,1.27451,1570.2,1570.1,1.27454]
[1744295298432,0.57006756,1570.3,1570.0,3.2078]
[1744295298637,1.27454,1570.1,1570.0,3.2078]
[1744295298932,1.27454,1570.1,1570.0,7.7279]
[1744295299142,0.57006756,1570.2,1570.1,1.27454]
[1744295299739,0.57006756,1570.2,1570.1,6.27454]
[1744295300439,0.57006756,1570.2,1570.1,1.27454]
[1744295301138,0.57006756,1570.2,1570.1,6.27454]
[1744295301735,0.00953803,1570.7,1570.6,1.27413]
[1744295301933,0.00953803,1570.7,1570.6,4.48193]
[1744295302430,3.2078,1571.0,1570.9,1.27389]
[1744295302625,1.27366,1571.2,1571.1,1.27369]
[1744295303025,10.54796794,1571.3,1570.8,8.50293]
[1744295303239,1.27376,1571.1,1571.0,1.27379]
[1744295303535,1.27365,1571.2,1571.1,1.27366]
[1744295303735,1.28318803,1571.2,1571.1,1.27366]
[1744295303940,0.00953803,1571.2,1571.1,4.48146]
[1744295304142,0.00953803,1571.2,1571.0,4.1229]
[1744295304540,0.00953803,1571.2,1570.9,0.00953803]
[1744295304736,1.27373,1571.1,1570.9,0.00953803]
[1744295304938,4.1865,1571.0,1570.9,1.28339803]
[1744295305247,5.46031,1571.0,1570.9,0.00953803]
[1744295305439,4.1865,1571.0,1570.9,4.49122803]
[1744295305631,1.27376,1571.1,1570.9,4.49122803]
[1744295305632,0.00953803,1571.2,1571.1,1.27373]
[1744295305829,4.19603803,1571.2,1570.9,0.00953803]
[1744295306028,1.27381,1571.0,1570.9,0.00953803]
[1744295306437,1.27378,1571.1,1570.9,3.21733803]
[1744295306741,0.00953803,1571.2,1571.1,1.27373]
[1744295307240,0.00953803,1571.2,1571.1,4.48153]
[1744295307636,0.00953803,1571.2,1571.1,1.27373]
[1744295307935,0.00953803,1571.2,1571.1,4.48153]
[1744295308136,0.00953803,1571.2,1571.1,9.48153]
[1744295309039,8.03e-06,1571.2,1571.1,4.48153]
[1744295309234,8.03e-06,1571.2,1571.1,9.48153]
[1744295309443,7.36395794,1572.0,1571.9,1.27308]
[1744295309740,8.62402833,1572.0,1571.8,4.48091]
[1744295309943,1.27309,1571.9,1571.8,1.27309]
[1744295310131,1.27316,1571.8,1571.7,1.27324]
[1744295310335,1.27312,1571.9,1571.8,1.27314]
[1744295310543,8.62402833,1572.0,1571.9,1.27308]
[1744295310734,1.27309,1571.9,1571.8,1.2731]
[1744295310936,1.28263803,1571.9,1571.8,1.27316]
[1744295311235,0.00953803,1571.9,1571.7,1.27318]
[1744295311439,1.27317,1571.8,1571.7,1.27318]
[1744295312039,4.07403803,1571.9,1571.6,7.4097]
[1744295312342,5.34715803,1571.9,1571.8,1.27316]
[1744295313035,1.27316,1571.8,1571.7,1.27317]
[1744295313231,1.27316,1571.8,1571.6,4.0323]
[1744295313541,1.27324,1571.7,1571.6,5.3056]
[1744295313739,1.27324,1571.7,1571.6,5.30555]
[1744295313940,1.81248813,1571.7,1571.6,1.27325]
[1744295314336,0.53924813,1571.7,1571.6,1.27325]
[1744295314736,1.27323,1571.8,1571.7,1.27324]
[1744295314939,1.27326,1571.7,1571.6,1.27325]
[1744295315538,1.27323,1571.8,1571.7,1.27322]
[1744295315739,1.81236405,1571.8,1571.7,1.27322]
[1744295316036,1.27328,1571.7,1571.6,1.27328]
[1744295317041,1.27321,1571.8,1571.7,1.27319]
[1744295317748,8.07093803,1571.9,1571.8,1.27316]
[1744295317749,9.34405803,1571.9,1571.8,1.27316]
[1744295318045,1.27332,1571.6,1571.5,0.00953803]
[1744295318246,4.48112,1571.6,1571.5,0.00953803]
[1744295318447,10.02018379,1571.6,1571.5,0.00953803]
[1744295318945,15.85418379,1571.6,1571.5,1e-08]
[1744295319145,1.27369,1571.2,1571.1,1.27369]
[1744295319340,1.27369,1571.2,1571.1,1.26070039]
[1744295319546,1.81275379,1571.2,1571.1,1.26070039]
[1744295320047,4.2446,1571.3,1571.2,1.27365]
[1744295320257,4.0915,1571.1,1570.7,9.80022872]
[1744295320448,4.0915,1571.1,1570.6,9.80022872]
[1744295320449,7.2993,1571.1,1570.6,9.80022872]
[1744295320748,21.02327406,1571.0,1570.7,0.00953803]
[1744295320942,1.27391,1570.9,1570.7,1.28351803]
[1744295321145,1.27391,1570.9,1570.7,0.00953803]
[1744295321341,4.48171,1570.9,1570.7,0.00953803]
[1744295321846,1.27391,1570.9,1570.7,0.00953803]
[1744295322049,1.27397,1570.8,1570.7,0.00953803]
[1744295322551,1.81386382,1570.8,1570.7,0.00953803]
[1744295322850,0.53989382,1570.8,1570.7,0.00953803]
[1744295323148,1.81386382,1570.8,1570.7,1.28358803]
[1744295323444,1.81386382,1570.8,1570.7,0.00953803]
[1744295323641,1.27397,1570.8,1570.7,0.00953803]
[1744295323842,1.27397,1570.8,1570.7,1.28358803]
[1744295324142,1.27394,1570.9,1570.7,1.28358803]
[1744295324646,1.27394,1570.9,1570.8,1.27397]
[1744295324949,1.27397,1570.8,1570.7,0.00953803]
[1744295325144,1.27397,1570.8,1570.7,6.00553803]
[1744295326044,4.196,1570.9,1570.7,6.00553803]
[1744295326353,1.27397,1570.8,1570.7,7.27952803]
[1744295326550,1.27397,1570.8,1570.7,6.00553803]
[1744295327551,6.04905248,1570.8,1570.7,6.00553803]
[1744295328343,6.04905248,1570.8,1570.7,7.27958803]
[1744295329040,4.77508248,1570.8,1570.7,10.48738803]
[1744295329244,6.04905248,1570.8,1570.7,10.48738803]
[1744295329654,4.2349,1570.8,1570.7,10.48738803]
[1744295330053,5.50887,1570.8,1570.7,6.00553803]
[1744295330557,5.50887,1570.8,1570.7,7.27958803]
[1744295331053,5.50887,1570.8,1570.7,1.28358803]
[1744295331254,6.05003716,1570.8,1570.7,1.28358803]
[1744295331751,6.05003716,1570.8,1570.7,0.00953803]
[1744295333248,10.23283716,1570.8,1570.7,0.00953803]
[1744295334652,4.77606716,1570.8,1570.7,4.49138803]
[1744295335157,1.27395,1570.9,1570.8,1.2739]
[1744295335461,4.79156757,1570.9,1570.8,1.2739]
[1744295335644,0.00953803,1571.0,1570.9,1.27389]
[1744295335959,0.00953803,1571.0,1570.9,8.74319]
[1744295336257,5.52426,1571.3,1571.2,1.27365]
[1744295336451,4.2507,1571.3,1571.2,1.27365]
[1744295336752,4.2507,1571.3,1571.2,6.27365]
[1744295336955,3.2078,1571.5,1571.4,1.27348]
[1744295336956,4.48128,1571.5,1571.4,1.27348]
[1744295337169,1.27351,1571.4,1571.3,1.2735]
[1744295337457,1.27348,1571.5,1571.4,1.27346]
[1744295337657,11.2432083,1571.6,1571.5,1.2734]
[1744295337855,8.4119783,1571.6,1571.5,4.4812]